bitfinex-derivatives/quotes_ETHF0:USTF0_20250928
["timestamp","ask_amount","ask_price","bid_price","bid_amount"]
[1759018916520,0.00266106,4020.6,4020.5,0.8857]
[1759018916929,0.75366106,4020.6,4020.5,0.8857]
[1759018917427,0.00266106,4020.6,4020.5,0.8857]
[1759018917726,0.00266106,4020.6,4020.5,1.55612443]
[1759018918625,0.00266106,4020.6,4020.5,0.8857]
[1759018919127,0.00266106,4020.6,4020.5,1.77882214]
[1759018923723,0.00266106,4020.6,4020.5,0.8857]
[1759018923921,0.00266106,4020.6,4020.5,2.9059953]
[1759018924127,0.75366106,4020.6,4020.5,0.321]
[1759018924325,1.11843,4021.2,4020.5,0.321]
[1759018924326,0.4384,4021.8,4021.7,0.7538]
[1759018924830,0.751,4021.8,4021.7,0.7538]
[1759018925239,0.75332499,4021.8,4021.7,0.7538]
[1759018925934,0.44072499,4021.8,4021.7,0.7538]
[1759018927527,0.22282499,4021.8,4021.7,0.7538]
[1759018928234,0.00232499,4021.8,4021.7,0.7538]
[1759018929633,0.22282499,4021.8,4021.7,0.7538]
[1759018930326,0.43032499,4021.8,4021.7,0.7538]
[1759018930528,0.44731,4021.7,4021.5,0.57923]
[1759018930730,0.7538,4021.4,4021.3,1.00435]
[1759018930940,0.7538,4021.4,4021.3,1.20935]
[1759018931830,0.4278,4021.4,4021.3,1.20935]
[1759018932537,0.7538,4021.4,4021.3,0.762]
[1759018932832,0.7538,4021.4,4021.3,0.557]
[1759018933033,0.4278,4021.4,4021.3,0.762]
[1759018933235,0.2203,4021.4,4021.3,0.762]
[1759018933838,0.2203,4021.4,4021.3,1.20935]
[1759018936225,0.2203,4021.4,4021.3,0.762]
[1759018936430,0.7538,4021.4,4021.3,0.762]
[1759018937238,0.4278,4021.4,4021.3,0.762]
[1759018939940,0.4278,4021.4,4021.3,1.20935]
[1759018941938,1.20114,4021.4,4021.3,0.557]
[1759018942145,1.20117,4021.1,4021.0,0.3378]
[1759018942337,1.20117,4021.1,4021.0,0.557]
[1759018943238,1.20117,4021.1,4021.0,1.00439]
[1759018943543,1.20117,4021.1,4021.0,0.557]
[1759018943942,1.18702,4020.7,4020.6,0.5497]
[1759018944638,0.44745,4020.5,4020.4,0.338]
[1759018944946,1.18705,4020.5,4020.4,0.338]
[1759018945142,1.18705,4020.5,4020.4,0.5497]
[1759018945942,1.18705,4020.5,4020.4,0.774]
[1759018946946,1.18705,4020.5,4020.4,0.5497]
[1759018947536,0.44748,4020.2,4020.0,0.80219087]
[1759018947740,0.9916,4020.5,4019.9,0.338]
[1759018947741,0.7584,4020.0,4019.9,0.338]
[1759018947946,0.87622,4019.8,4019.6,0.67184031]
[1759018948143,0.7396,4019.7,4019.6,0.66108944]
[1759018948446,0.7396,4019.7,4019.6,0.88538944]
[1759018948646,0.4287,4019.7,4019.6,1.22338944]
[1759018949043,0.2118,4019.7,4019.6,1.22338944]
[1759018950042,41.03678,4021.4,4019.6,1.22338944]
[1759018950043,0.2118,4020.2,4019.7,0.338]
[1759018950345,3.2078,4020.4,4020.3,1.27700894]
[1759018951241,3.867,4020.9,4020.8,0.88341]
[1759018951441,3.867,4020.9,4020.8,1.22141]
[1759018951646,3.867,4020.9,4020.8,0.774]
[1759018953044,4.0839,4020.9,4020.8,0.774]
[1759018953244,3.7356,4020.9,4020.1,0.44748]
[1759018953451,0.7396,4020.2,4020.1,0.436]
[1759018953651,0.7396,4020.2,4020.1,0.93900894]
[1759018953858,0.7396,4020.2,4020.1,1.27700894]
[1759018958056,0.7396,4020.2,4020.1,0.774]
[1759018962658,0.4287,4020.2,4020.1,0.774]
[1759018962960,0.87617,4020.2,4020.1,0.774]
[1759018964356,1.18707,4020.2,4020.1,0.774]
[1759018964563,1.43907,4020.2,4020.1,0.774]
[1759018966964,1.12817,4020.2,4020.1,0.774]
[1759018967468,1.43907,4020.2,4020.1,0.774]
[1759018968560,1.43907,4020.2,4020.1,0.5497]
[1759018975272,1.43907,4020.2,4020.1,0.338]
[1759018977682,0.6807,4020.2,4020.1,0.7882]
[1759018977880,3.2078,4020.4,4020.3,1.23086]
[1759018978081,3.2078,4020.4,4020.3,1.90102267]
[1759018979075,3.2078,4020.9,4020.7,0.44741]
[1759018979280,0.252,4020.9,4020.8,0.7834]
[1759018979482,0.44737,4021.2,4021.1,0.7834]
[1759018979677,0.69937,4021.2,4021.1,0.7834]
[1759018979882,0.252,4021.2,4021.1,0.7834]
[1759018980384,3.4162,4021.4,4021.3,0.7834]
[1759018980686,3.6682,4021.4,4021.3,0.7834]
[1759018981186,3.2078,4021.4,4021.3,1.28640894]
[1759018983387,3.6337,4021.4,4021.3,1.28640894]
[1759018983587,3.9573,4021.4,4021.3,1.28640894]
[1759018983897,3.6337,4021.4,4021.3,1.28640894]
[1759018984393,3.4162,4021.4,4021.3,1.28640894]
[1759018984594,3.2078,4021.4,4021.3,1.28640894]
[1759018984786,0.252,4021.6,4021.5,0.9067]
[1759018985086,0.00232499,4021.8,4021.5,0.9067]
[1759018985087,0.00232499,4021.8,4021.7,0.7834]
[1759018985488,0.00232499,4021.8,4021.7,2.1855548]
[1759018986184,0.00232499,4021.8,4021.7,2.68856374]
[1759018986885,0.00232499,4021.8,4021.7,2.94056374]
[1759018987484,0.00232499,4021.8,4021.7,1.53840894]
[1759018988590,0.00232499,4021.8,4021.7,2.66341639]
[1759018993388,0.00232499,4021.8,4021.7,2.41141639]
[1759018993594,0.00232499,4021.8,4021.7,2.66341639]
[1759018996892,0.00232499,4021.8,4021.7,3.11072639]
[1759019006191,0.00232499,4021.8,4021.7,3.77911956]
[1759019007189,0.00232499,4021.8,4021.7,6.31852639]
[1759019009090,0.00232499,4021.8,4021.7,7.21184755]
[1759019010097,0.00232499,4021.8,4021.7,6.31852639]
[1759019016103,0.00232499,4021.8,4021.7,6.06652639]
[1759019016300,1e-08,4021.8,4021.7,6.31852639]
[1759019019514,1e-08,4021.8,4021.7,5.81551745]
[1759019023713,1e-08,4021.8,4021.7,6.31852639]
[1759019028006,1e-08,4021.8,4021.7,6.06652639]
[1759019028205,1e-08,4021.8,4021.7,6.31852639]
[1759019030319,1e-08,4021.8,4021.7,6.06652639]
[1759019030519,1e-08,4021.8,4021.7,6.31852639]
[1759019030816,1e-08,4021.8,4021.7,5.87121639]
[1759019032016,1e-08,4021.8,4021.7,4.87200745]
[1759019032017,0.67200001,4021.8,4021.7,4.87200745]
[1759019032214,1.20020001,4021.8,4021.7,5.12400745]
[1759019032912,1.20020001,4021.8,4021.7,5.33810745]
[1759019033111,0.75290001,4021.8,4021.7,5.33810745]
[1759019033311,0.43440001,4021.8,4021.7,5.33810745]
[1759019033819,1e-08,4021.8,4021.7,5.45221745]
[1759019034718,0.21310001,4021.8,4021.7,5.00490745]
[1759019034908,0.21310001,4021.8,4021.7,5.34240745]
[1759019035312,0.21310001,4021.8,4021.7,5.78971745]
[1759019035820,1e-08,4021.8,4021.7,5.95522639]
[1759019038917,3.67698,4022.9,4022.1,1.11816]
[1759019039124,3.67697,4022.9,4022.8,2.58286491]
[1759019039516,3.89007,4022.9,4022.8,2.58286491]
[1759019040122,3.89202979,4022.9,4022.8,2.58575231]
[1759019040825,0.68422979,4022.9,4022.8,1.91569485]
[1759019041218,0.68422979,4022.9,4022.8,2.58526411]
[1759019041422,0.68422979,4022.9,4022.8,1.91569485]
[1759019041917,0.68422979,4022.9,4022.8,2.8091048]
[1759019042119,0.68422979,4022.9,4022.8,1.91569485]
[1759019042318,0.47112979,4022.9,4022.8,1.91569485]
[1759019043720,0.47112979,4022.9,4022.8,2.8091048]
[1759019046129,0.47112979,4022.9,4022.8,1.91569485]
[1759019046731,0.91042979,4022.9,4022.8,0.7906874]
[1759019046928,1.24082979,4022.9,4022.8,1.0426874]
[1759019047231,1.24082979,4022.9,4022.8,1.71127681]
[1759019048231,1.24082979,4022.9,4022.8,2.15846681]
[1759019048934,1.24082979,4022.9,4022.8,1.45927681]
[1759019049137,9.44862979,4022.9,4022.8,0.0028874]
[1759019049337,9.44862979,4022.9,4022.8,0.3169874]
[1759019049630,3.67105979,4022.9,4022.8,0.7444874]
[1759019050338,0.23705979,4022.9,4022.8,0.7444874]
[1759019050930,0.02395979,4022.9,4022.8,2.90088447]
[1759019051130,0.02395979,4022.9,4022.8,3.56947388]
[1759019051839,0.24335979,4022.9,4022.8,2.16808575]
[1759019054249,0.76915979,4022.9,4022.8,0.9964874]
[1759019055047,0.46085979,4022.9,4022.8,0.9964874]
[1759019055444,0.24335979,4022.9,4022.8,0.9964874]
[1759019056047,0.02395979,4022.9,4022.8,3.56947388]
[1759019057349,0.02395979,4022.9,4022.8,2.90088447]
[1759019057549,0.02395979,4022.9,4022.8,3.79429442]
[1759019061953,0.02395979,4022.9,4022.8,4.24148442]
[1759019064257,0.02395979,4022.9,4022.8,3.34807447]
[1759019064856,0.02395979,4022.9,4022.8,1.94668634]
[1759019065053,0.02395979,4022.9,4022.8,3.34807447]
[1759019069559,1.23232979,4022.9,4022.8,2.33657951]
[1759019070060,0.78515979,4022.9,4022.8,2.33657951]
[1759019070959,0.78515979,4022.9,4022.8,1.88938951]
[1759019071154,1.23232979,4022.9,4022.8,1.88938951]
[1759019071355,1.23232979,4022.9,4022.8,2.33657951]
[1759019071762,0.78515979,4022.9,4022.8,2.33657951]
[1759019073657,1.76397554,4024.2,4022.8,2.33657951]
[1759019073658,1.76397554,4024.2,4024.0,0.1266]
[1759019073857,0.44702,4024.4,4024.2,0.2168]
[1759019074164,0.44702,4024.4,4024.3,0.7513]
[1759019074165,0.70722,4024.4,4024.3,0.7513]
[1759019074358,0.2602,4024.4,4024.3,0.7513]
[1759019074659,5.26296086,4024.4,4024.3,0.7513]
[1759019076061,0.13286086,4024.4,4024.3,0.7513]
[1759019079155,0.00276086,4024.4,4024.3,0.7513]
[1759019085370,0.00276086,4024.4,4024.3,2.31879707]
[1759019088278,0.00276086,4024.4,4024.3,2.76581707]
[1759019091078,0.00276086,4024.4,4024.3,1.36442894]
[1759019099792,0.00276086,4024.4,4024.3,0.91740894]
[1759019100394,0.00276086,4024.4,4024.3,1.36442894]
[1759019102188,0.00276086,4024.4,4024.3,2.03404248]
[1759019102895,0.00276086,4024.4,4024.3,3.43543061]
[1759019103093,0.00276086,4024.4,4024.3,3.65863512]
[1759019105195,0.00276086,4024.4,4024.3,2.25724699]
[1759019106000,0.44977086,4024.4,4024.3,2.25724699]
[1759019106496,0.00276086,4024.4,4024.3,2.25724699]
[1759019109109,0.00276086,4024.4,4024.3,1.36442894]
[1759019109715,0.00276086,4024.4,4024.3,1.16940894]
[1759019110308,0.00276086,4024.4,4024.3,2.95441181]
[1759019110806,0.00276086,4024.4,4024.3,4.07805673]
[1759019111707,0.44695,4024.9,4024.8,0.7745]
[1759019111908,0.44695,4024.9,4024.8,2.15014492]
[1759019112598,0.44984937,4024.9,4024.8,2.15014492]
[1759019115507,0.00289937,4024.9,4024.8,2.15014492]
[1759019116208,0.00289937,4024.9,4024.8,2.81846051]
[1759019118613,0.44984937,4024.9,4024.8,2.81846051]
[1759019121615,0.72244937,4024.9,4024.8,1.44281559]
[1759019121906,9.01544937,4024.9,4024.8,0.3222]
[1759019122998,1.11752,4024.4,4024.1,0.66834662]
[1759019123197,0.66038,4023.7,4023.6,3.6383]
[1759019123405,0.44705,4024.0,4023.9,0.2129]
[1759019123611,0.44705,4024.0,4023.9,0.4305]
[1759019124607,0.44705,4024.0,4023.6,3.2078]
[1759019124608,0.44707,4023.8,4023.6,3.2078]
[1759019124810,0.7035,4023.4,4023.3,0.2129]
[1759019125011,1.15062,4023.4,4023.3,0.5199]
[1759019125211,0.88432,4023.4,4023.3,0.7375]
[1759019127117,3.4598,4023.9,4023.3,0.7375]
[1759019127118,3.86816,4023.9,4023.8,0.4305]
[1759019127316,3.86816,4023.9,4023.8,0.7375]
[1759019127516,4.18416,4023.9,4023.8,0.4504]
[1759019127720,3.2078,4023.9,4023.8,0.83410894]
[1759019127914,0.76304,4024.1,4023.8,0.59660894]
[1759019128117,0.76305,4024.0,4023.8,0.59660894]
[1759019128422,0.76305,4024.0,4023.8,0.4305]
[1759019128617,0.97635,4024.0,4023.9,0.59660894]
[1759019128921,1.20025,4024.0,4023.9,0.59660894]
[1759019129111,1.33205,4024.0,4023.9,0.59660894]
[1759019129312,1.20025,4024.0,4023.9,0.59660894]
[1759019129516,0.7532,4024.0,4023.9,0.59660894]
[1759019129721,0.2133,4024.0,4023.9,0.90360894]
[1759019129926,3.5238,4024.5,4024.3,0.307]
[1759019130108,3.2078,4024.5,4024.4,1.1845]
[1759019130311,3.2078,4024.5,4024.4,1.35060894]
[1759019130517,3.2078,4024.5,4024.4,1.60260894]
[1759019131622,3.2078,4024.5,4024.4,2.72625386]
[1759019132019,1.20304937,4024.9,4024.8,0.7375]
[1759019132422,1.20304937,4024.9,4024.8,0.90360894]
[1759019134024,0.75609937,4024.9,4024.8,0.90360894]
[1759019134411,0.53219937,4024.9,4024.8,0.90360894]
[1759019134727,0.21619937,4024.9,4024.8,0.90360894]
[1759019135116,0.53219937,4024.9,4024.8,0.90360894]
[1759019137519,0.75609937,4024.9,4024.8,0.90360894]
[1759019139520,0.75609937,4024.9,4024.8,0.7375]
[1759019140525,0.00289937,4024.9,4024.8,0.7375]
[1759019140917,0.75609937,4024.9,4024.8,0.7375]
[1759019142125,0.00289937,4024.9,4024.8,0.90360894]
[1759019143431,0.00289937,4024.9,4024.8,1.60156894]
[1759019143925,0.00289937,4024.9,4024.8,1.80441988]
[1759019144228,3.04459043,4025.6,4025.4,0.44688]
[1759019144415,3.04459043,4025.6,4025.5,1.99334492]
[1759019145112,0.5293,4025.6,4025.5,1.99334492]
[1759019145317,0.53215573,4025.6,4025.5,1.99334492]
[1759019145924,0.75605573,4025.6,4025.5,0.7375]
[1759019146226,0.75605573,4025.6,4025.1,0.5199]
[1759019146227,0.4372,4025.2,4025.1,0.5199]
[1759019146418,1.87684492,4025.2,4025.1,0.2129]
[1759019146726,2.32376492,4025.2,4025.1,0.2129]
[1759019147118,1.20012,4025.2,4025.1,0.2129]
[1759019148226,0.57874,4025.0,4024.9,0.251]
[1759019148529,1.33194,4025.0,4024.9,0.251]
[1759019148921,1.33194,4025.0,4024.9,0.4639]
[1759019150120,1.33194,4025.0,4024.9,0.7709]
[1759019151026,1.33194,4025.0,4024.9,0.5199]
[1759019151231,1.33194,4025.0,4024.9,0.7375]
[1759019151529,1.20014,4025.0,4024.9,0.7375]
[1759019154324,1.33624,4025.0,4024.9,0.2129]
[1759019155023,1.33624,4025.0,4024.5,0.2205]
[1759019155024,0.86148,4024.6,4024.5,0.2205]
[1759019155226,1.19108,4024.6,4024.5,0.2205]
[1759019156127,1.32719,4024.5,4024.4,0.251]
[1759019158927,0.86152,4024.3,4024.2,0.5512]
[1759019159133,1.19112,4024.3,4024.2,0.5512]
[1759019160532,0.7441,4024.3,4024.2,0.5512]
[1759019162136,0.3296,4024.5,4024.4,0.763]
[1759019162338,0.3296,4024.5,4024.4,1.88664492]
[1759019162535,0.3296,4024.5,4024.4,2.33365492]
[1759019163133,0.3296,4024.5,4024.4,2.58465492]
[1759019163534,0.44698,4024.6,4024.5,1.00429]
[1759019163740,0.77658,4024.6,4024.5,1.33499]
[1759019163950,0.3296,4024.9,4024.5,0.4557]
[1759019164245,0.536,4024.9,4024.8,1.88664492]
[1759019164538,0.536,4024.9,4024.8,2.33360492]
[1759019165836,0.2064,4024.9,4024.8,2.33360492]
[1759019166035,0.7441,4024.9,4024.8,1.88664492]
[1759019166431,0.7441,4024.9,4024.8,1.55594492]
[1759019166643,0.7441,4024.9,4024.8,0.4323]
[1759019167042,0.7441,4024.9,4024.8,0.2205]
[1759019168037,0.4145,4024.7,4024.6,0.4715]
[1759019168242,0.7441,4024.7,4024.6,0.4715]
[1759019168742,0.7441,4024.7,4024.6,0.8022]
[1759019168930,0.7441,4024.7,4024.6,0.763]
[1759019172050,0.536,4024.7,4024.6,2.16314125]
[1759019172246,0.58304,4025.0,4024.6,2.16314125]
[1759019172247,0.2068,4025.0,4024.9,0.7642]
[1759019172840,0.5394,4025.0,4024.9,0.7642]
[1759019173034,0.98634,4025.0,4024.9,0.7642]
[1759019173241,0.98634,4025.0,4024.9,1.21114]
[1759019173747,1.19644,4025.0,4024.9,0.7642]
[1759019173947,1.32174,4025.0,4024.9,0.7642]
[1759019174743,0.8748,4025.0,4024.9,1.21115]
[1759019175248,0.7495,4025.0,4024.9,1.21115]
[1759019177254,1.19644,4025.0,4024.9,0.7642]
[1759019177550,0.7495,4025.0,4024.9,1.21115]
[1759019178253,1.19644,4025.0,4024.9,1.21115]
[1759019179148,0.7495,4025.0,4024.9,1.21115]
[1759019179843,1.19644,4025.0,4024.9,0.7642]
[1759019180250,1.19644,4025.0,4024.9,1.21115]
[1759019181650,0.7495,4025.0,4024.9,1.21115]
[1759019181955,1.19644,4025.0,4024.9,1.21115]
[1759019182457,0.7495,4025.0,4024.9,1.21115]
[1759019183555,0.5394,4025.0,4024.9,1.21115]
[1759019183750,3.65473,4025.1,4025.0,1.32634]
[1759019184153,3.2078,4025.1,4025.0,1.32634]
[1759019184347,3.7453,4025.1,4025.0,1.32634]
[1759019185254,4.19223,4025.1,4025.0,1.32634]
[1759019186357,0.00285573,4025.6,4025.0,1.32634]
[1759019186358,0.5375,4025.5,4025.4,1.19569]
[1759019186959,0.7561,4025.5,4025.4,1.19569]
[1759019187860,0.7561,4025.5,4025.4,0.7488]
[1759019188062,0.8868,4025.5,4025.4,0.7488]
[1759019189566,0.7561,4025.5,4025.4,0.7488]
[1759019190259,0.44973573,4025.6,4025.5,0.44688]
[1759019190260,0.00285573,4025.6,4025.5,0.44688]
[1759019190465,0.00285573,4025.6,4025.5,1.32628]
[1759019190667,0.54035573,4025.6,4025.5,1.32628]
[1759019191058,0.54035573,4025.6,4025.5,0.8794]
[1759019195975,0.54035573,4025.6,4025.5,0.7488]
[1759019196361,0.54035573,4025.6,4025.5,1.19568]
[1759019197566,0.98722573,4025.6,4025.5,1.19568]
[1759019198165,0.75895573,4025.6,4025.5,1.19568]
[1759019199367,0.4533,4025.5,4025.2,0.3329]
[1759019199670,0.4533,4025.5,4025.2,0.2076]
[1759019199671,0.7561,4025.3,4025.2,0.2076]
[1759019200172,0.7561,4025.3,4025.2,0.65452]
[1759019201480,0.7561,4025.3,4025.2,0.44692]
[1759019201872,0.7561,4025.3,4025.2,0.65452]
[1759019202561,0.7561,4025.3,4025.1,3.2078]
[1759019202562,0.44692,4025.2,4025.1,3.2078]
[1759019202762,0.44692,4025.2,4024.8,1.33762696]
[1759019202763,0.1307,4025.0,4024.8,0.44695]
[1759019202962,0.7561,4024.9,4024.8,0.69795]
[1759019203367,0.7561,4024.9,4024.8,0.90555]
[1759019203677,0.7561,4024.9,4024.8,0.4586]
[1759019204062,0.7561,4024.9,4024.8,0.2076]
[1759019205077,1.20306,4024.8,4024.7,0.251]
[1759019205373,1.20306,4024.8,4024.7,0.2076]
[1759019205563,1.20306,4024.8,4024.7,0.5405]
[1759019206672,0.7561,4024.8,4024.7,0.7488]
[1759019208982,1.20306,4024.8,4024.7,0.7488]
[1759019210083,1.20306,4024.8,4024.7,0.3329]
[1759019210377,0.1307,4024.0,4023.9,0.88947557]
[1759019210571,0.1307,4024.0,4023.6,4.34827557]
[1759019210572,0.44709,4023.7,4023.6,4.34827557]
[1759019210774,0.5375,4023.7,4023.6,6.49721682]
[1759019211067,0.44707,4023.9,4023.7,0.7488]
[1759019211068,0.3226,4023.8,4023.7,0.7488]
[1759019211381,0.5375,4023.8,4023.7,1.63785563]
[1759019211682,0.7561,4023.8,4023.7,0.7488]
[1759019212274,0.5375,4023.8,4023.7,0.7488]
[1759019212469,3.2078,4024.3,4023.7,0.7488]
[1759019212470,3.65482,4024.3,4024.1,0.86293]
[1759019212671,3.65482,4024.3,4024.2,2.39994125]
[1759019213872,0.44702,4024.3,4024.2,2.39994125]
[1759019214072,0.44702,4024.3,4024.2,5.60774125]
[1759019215671,0.99552,4024.3,4024.2,5.60774125]
[1759019216075,0.44701,4024.4,4024.2,6.05476125]
[1759019216370,0.99551,4024.4,4024.3,0.7689]
[1759019218883,1.22091,4024.4,4024.3,0.7689]
[1759019219580,1.22096,4023.9,4023.8,0.88811889]
[1759019219879,0.7739,4023.7,4023.6,3.9767]
[1759019220179,0.7739,4023.7,4023.6,4.2277]
[1759019220573,0.77003,4024.3,4024.1,0.4294]
[1759019220777,0.99553,4024.3,4024.2,0.7689]
[1759019221485,1.22093,4024.3,4024.2,0.7689]
[1759019221678,1.22093,4024.3,4024.2,0.2192]
[1759019221879,1.22093,4024.3,4024.1,0.251]
[1759019222182,1.22093,4024.3,4024.2,0.2192]
[1759019222379,1.22093,4024.3,4024.2,0.5587]
[1759019222881,1.22093,4024.3,4024.1,0.251]
[1759019224590,0.89793,4024.3,4024.1,0.5905]
[1759019224780,0.7739,4024.2,4024.1,0.8097]
[1759019224980,0.7739,4024.2,4024.1,0.5587]
[1759019229981,0.97379,4024.6,4024.4,0.325]
[1759019230188,0.97379,4024.6,4024.5,2.28014125]
[1759019230794,0.5268,4024.6,4024.5,2.28014125]
[1759019231088,0.2137,4024.9,4024.8,1.19926]
[1759019231279,0.2137,4024.9,4024.8,2.59940125]
[1759019231482,0.5268,4025.3,4025.2,0.44691]
[1759019231680,0.7436,4025.3,4025.2,1.82744125]
[1759019232083,0.7436,4025.3,4025.2,2.15244125]
[1759019232283,0.5268,4025.3,4025.2,2.15244125]
[1759019232584,3.4588,4025.9,4025.5,0.7523]
[1759019232585,0.52965573,4025.6,4025.5,0.7523]
[1759019232782,0.74645573,4025.6,4025.4,0.44689]
[1759019232981,0.74645573,4025.6,4025.5,0.2134]
[1759019233290,0.74645573,4025.6,4025.5,0.5384]
[1759019233589,0.74645573,4025.6,4025.5,0.7523]
[1759019233896,0.74645573,4025.6,4025.5,1.87534727]
[1759019234392,0.74645573,4025.6,4025.5,2.00304727]
[1759019234393,0.52965573,4025.6,4025.5,2.00304727]
[1759019234780,0.3131,4026.2,4025.5,6.25074727]
[1759019234986,0.5268,4026.2,4026.1,1.87534727]
[1759019235284,0.7436,4026.2,4026.1,1.87534727]
[1759019235886,0.74680959,4026.2,4026.1,1.87758097]
[1759019238587,0.21690959,4026.2,4026.1,1.87758097]
[1759019238786,0.00320959,4026.2,4026.1,1.87758097]
[1759019242794,0.00320959,4026.2,4026.1,2.12858097]
[1759019244296,0.54120959,4026.2,4026.1,1.0055337]
[1759019244596,0.00320959,4026.2,4026.1,2.12858097]
[1759019248094,0.00320959,4026.2,4026.1,3.69844824]
[1759019251799,0.00320959,4026.2,4026.1,2.57540097]
[1759019252207,0.00320959,4026.2,4026.1,3.69844824]
[1759019257108,0.00320959,4026.2,4026.1,6.90624824]
[1759019258608,0.00320959,4026.2,4026.1,5.78320097]
[1759019259007,0.00320959,4026.2,4026.1,6.90624824]
[1759019259208,0.00320959,4026.2,4026.1,7.79466366]
[1759019261206,0.00320959,4026.2,4026.1,6.90624824]
[1759019261401,0.00320959,4026.2,4026.1,8.2438752]
[1759019263422,0.00320959,4026.2,4026.1,6.90624824]
[1759019265423,0.5372,4027.1,4027.0,1.20052]
[1759019265615,0.5372,4027.1,4027.0,2.57456727]
[1759019266024,0.7543,4027.1,4027.0,2.57456727]
[1759019266521,0.75730316,4027.1,4027.0,2.57456727]
[1759019268323,0.00300316,4027.1,4027.0,2.69996727]
[1759019268621,0.00300316,4027.1,4027.0,3.58735263]
[1759019269921,0.00300316,4027.1,4027.0,2.69996727]
[1759019273228,0.00300316,4027.1,4027.0,4.02893272]
[1759019276231,0.00300316,4027.1,4027.0,3.77793272]
[1759019276532,0.00300316,4027.1,4027.0,4.02893272]
[1759019280832,0.00300316,4027.1,4027.0,3.82301454]
[1759019281125,0.00300316,4027.1,4027.0,2.69996727]
[1759019281330,0.00300316,4027.1,4027.0,3.82301454]
[1759019282122,0.1271,4028.0,4027.0,3.03839454]
[1759019282323,1.12304727,4028.7,4027.0,3.03839454]
[1759019282324,0.5546,4029.1,4029.0,1.20059]
[1759019282521,0.5546,4029.1,4029.0,2.57463727]
[1759019283127,0.5546,4029.1,4029.0,2.57740993]
[1759019283128,0.55719247,4029.1,4029.0,2.57740993]
[1759019284022,0.55719247,4029.1,4029.0,2.90450913]
[1759019284225,0.125,4031.3,4031.2,0.44625]
[1759019284429,0.91268776,4031.9,4031.8,0.65568]
[1759019284735,0.2427,4032.9,4032.8,0.87497]
[1759019284932,0.2427,4032.9,4032.8,2.57921727]
[1759019285235,0.02491613,4032.9,4032.8,2.58153454]
[1759019285625,0.24561613,4032.9,4032.8,2.58153454]
[1759019285827,0.24561613,4032.9,4032.8,0.75641727]
[1759019285828,0.47241613,4032.9,4032.8,0.75641727]
[1759019286033,5.47241613,4032.9,4032.8,0.00231727]
[1759019286333,5.80631613,4032.9,4032.8,1.727e-05]
[1759019286837,0.7814,4032.2,4032.1,0.256]
[1759019287336,0.7814,4032.2,4032.1,0.4655]
[1759019287738,0.7814,4032.2,4032.1,0.79323842]
[1759019288537,0.5546,4032.8,4032.7,0.2194]
[1759019288734,0.5546,4032.8,4032.7,1.0101]
[1759019289933,0.7814,4032.8,4032.7,1.0101]
[1759019290942,1.30911,4032.5,4032.2,0.256]
[1759019292041,0.7379,4032.3,4032.2,0.256]
[1759019292339,0.7379,4032.3,4032.1,0.00253842]
[1759019292541,0.7379,4032.3,4032.2,0.256]
[1759019293536,0.86584,4032.2,4032.1,0.00253842]
[1759019293844,1.18404,4032.2,4032.1,0.00253842]
[1759019294138,6.18404,4032.2,4032.1,0.00253842]
[1759019298943,6.44004,4032.2,4032.1,0.00253842]
[1759019301939,6.44004,4032.2,4031.4,3.2078]
[1759019301940,1.30922,4031.5,4031.4,3.2078]
[1759019302539,1.30922,4031.5,4031.4,3.4229]
[1759019302752,0.863,4031.5,4031.4,3.7445]
[1759019302947,0.863,4031.5,4031.4,3.7471741]
[1759019303646,0.863,4031.5,4031.4,3.9615741]
[1759019303947,0.7379,4031.5,4031.4,3.9615741]
[1759019304142,0.316,4031.8,4031.4,3.7464741]
[1759019304347,0.316,4031.8,4031.7,0.7587]
[1759019304348,0.5299,4031.8,4031.7,0.7587]
[1759019304738,0.5299,4032.1,4032.0,0.7587]
[1759019304938,0.7486,4032.1,4032.0,0.7587]
[1759019305146,0.4486,4031.5,4031.4,3.6566941]
[1759019305344,0.2139,4031.8,4031.7,0.44619]
[1759019305550,3.6404,4032.3,4032.2,0.431]
[1759019305752,0.4326,4032.3,4032.2,0.431]
[1759019305936,0.4326,4032.3,4032.2,0.7587]
[1759019306142,0.7486,4032.3,4032.2,0.7587]
[1759019306448,0.316,4032.5,4032.3,0.44613]
[1759019306642,0.5299,4032.5,4032.4,0.7587]
[1759019307140,0.7486,4032.5,4032.4,0.7587]
[1759019307340,3.65388,4032.8,4032.4,0.7587]
[1759019307547,3.65388,4032.8,4032.0,0.1284]
[1759019307548,4.18378,4032.8,4032.7,0.7587]
[1759019307738,0.97598,4032.8,4032.7,0.7587]
[1759019308344,1.19468,4032.8,4032.7,0.22]
[1759019308549,1.19468,4032.8,4032.1,3.2078]
[1759019308550,1.19473,4032.3,4032.1,3.2078]
[1759019308851,0.7486,4032.2,4032.1,3.2078]
[1759019309355,0.1326,4032.5,4031.5,0.1284]
[1759019309356,0.7486,4031.7,4031.6,3.4278]
[1759019309647,0.4326,4031.7,4031.6,3.9665]
[1759019309852,0.2139,4031.7,4031.6,3.9665]
[1759019310946,0.316,4032.0,4031.9,0.44617]
[1759019311151,0.2139,4032.0,4031.9,1.20487]
[1759019311347,0.316,4032.2,4032.1,0.44615]
[1759019311657,1.32731,4032.5,4032.4,0.7587]
[1759019311956,1.32731,4032.5,4032.4,0.22]
[1759019313150,1.32731,4032.5,4032.4,0.7587]
[1759019313151,0.7486,4032.5,4032.4,0.7587]
[1759019313351,0.5299,4032.7,4032.6,0.7587]
[1759019313550,0.7486,4032.7,4032.6,0.7587]
[1759019313751,0.7486,4032.7,4032.6,1.41944156]
[1759019313948,0.2139,4032.7,4032.6,1.41944156]
[1759019314145,0.4326,4032.7,4032.6,1.63968874]
[1759019314346,0.7486,4032.7,4032.6,1.63968874]
[1759019314545,0.7486,4032.7,4032.6,0.7587]
[1759019316352,0.7486,4032.7,4032.6,1.64277889]
[1759019322957,3.65388,4032.8,4032.6,1.64277889]
[1759019323157,3.86778,4032.8,4032.7,0.7587]
[1759019323655,4.40248,4032.8,4032.7,0.7587]